[Event "Dvorkovich Memorial Rapid 2018"]
[Site "Taganrog"]
[Date "2018.01.14"]
[Round "1.24"]
[White "Vastrukhin, Oleg"]
[Black "Dragunov, Artem"]
[Result "1-0"]
[ECO "B08"]
[WhiteElo "2398"]
[BlackElo "1962"]
[Annotator "ChessBase"]
[PlyCount "88"]
[EventDate "2018.??.??"]
[EventType "swiss"]
[EventCountry "RUS"]
[SourceTitle "playchess.com"]
[Source "ChessBase"]
[SourceQuality "1"]
[TimeControl "900+10"]

1. Nf3 {[%emt 0:00:00]} g6 {[%emt 0:00:49]} 2. d4 {[%emt 0:00:00]} Bg7 {[%emt 0:00:06]} 3. e4 {[%emt 0:00:00]} d6 {[%emt 0:00:08]} 4. Nc3 {[%emt 0:00:00]} Nf6 {[%emt 0:00:06]} 5. Bg5 {[%emt 0:00:00]} h6 {[%emt 0:00:30]} 6. Be3 {[%emt 0:00:00]} Nc6 {[%emt 0:00:31]} 7. h3 {[%emt 0:00:07]} a6 {[%emt 0:00:31]} 8. a4 {[%emt 0:00:02]} O-O {[%emt 0:00:35]} 9. Qd2 {[%emt 0:00:01]} Kh7 {[%emt 0:00:15]} 10. g4 {[%emt 0:00:07]} d5 {[%emt 0:01:09]} 11. Bd3 {[%emt 0:00:09]} Nb4 {[%emt 0:00:56]} 12. g5 {[%emt 0:01:05]} Nxd3+ {[%emt 0:00:25]} 13. cxd3 {[%emt 0:00:00]} Ng8 {[%emt 0:00:43]} 14. Nxd5 {[%emt 0:00:20]} h5 {[%emt 0:00:29]} 15. a5 {[%emt 0:00:35]} Bd7 {[%emt 0:00:49]} 16. Ne5 {[%emt 0:00:20]} Be6 {[%emt 0:00:54]} 17. Nf4 {[%emt 0:00:21]} Bc8 {[%emt 0:00:42]} 18. Rc1 {[%emt 0:00:07]} e6 {[%emt 0:00:22]} 19. h4 {[%emt 0:00:31]} Ne7 {[%emt 0:00:33]} 20. Qc3 {[%emt 0:00:00]} Bxe5 {[%emt 0:00:54]} 21. dxe5 {[%emt 0:00:05]} Nc6 {[%emt 0:00:00]} 22. d4 {[%emt 0:00:10]} Qe8 {[%emt 0:00:51]} 23. f3 {[%emt 0:00:18]} Bd7 {[%emt 0:00:13]} 24. Kf2 {[%emt 0:00:02]} Rc8 {[%emt 0:00:09]} 25. Rhe1 {[%emt 0:00:02]} Na7 {[%emt 0:00:35]} 26. Qb4 {[%emt 0:00:50]} Bb5 {[%emt 0:00:34]} 27. d5 {[%emt 0:00:10]} Ra8 {[%emt 0:00:29]} 28. Rxc7 {[%emt 0:00:22]} exd5 {[%emt 0:00:10]} 29. Bxa7 {[%emt 0:00:07]} Qxe5 {[%emt 0:00:26]} 30. Nxd5 {[%emt 0:01:01]} Qh2+ {[%emt 0:00:02]} 31. Ke3 {[%emt 0:00:01]} Qxh4 {[%emt 0:00:46]} 32. Rg1 {[%emt 0:00:55]} Qh2 {[%emt 0:00:26]} 33. Re1 {[%emt 0:00:31]} Qg3 {[%emt 0:00:35]} 34. Bd4 {[%emt 0:00:18]} Qxg5+ {[%emt 0:00:00]} 35. Kf2 {[%emt 0:00:00]} Qh4+ {[%emt 0:00:59]} 36. Kg2 {[%emt 0:00:03]} Qg5+ {[%emt 0:00:19]} 37. Kh3 {[%emt 0:00:51]} Rac8 {[%emt 0:01:12]} 38. Rg1 {[%emt 0:02:40]} Bf1+ {[%emt 0:00:50]} 39. Rxf1 {[%emt 0:00:11]} Rxc7 {[%emt 0:00:12]} 40. Nxc7 {[%emt 0:00:00]} Rd8 {[%emt 0:00:18]} 41. Nd5 {[%emt 0:00:11]} Rxd5 {[%emt 0:00:50]} 42. exd5 {[%emt 0:00:04]} h4 {[%emt 0:00:02]} 43. Bf2 {[%emt 0:00:13]} Qf5+ {[%emt 0:00:19]} 44. Qg4 {[%emt 0:00:11]} Qxg4+ {[%emt 0:00:00]} 1-0

[Event "Dvorkovich Memorial Rapid 2018"]
[Site "Taganrog"]
[Date "2018.01.14"]
[Round "1.28"]
[White "Tunik, Gennady"]
[Black "Khuranov, Temir"]
[Result "1-0"]
[ECO "D45"]
[WhiteElo "2378"]
[BlackElo "1658"]
[Annotator "ChessBase"]
[PlyCount "137"]
[EventDate "2018.??.??"]
[EventType "swiss"]
[EventCountry "RUS"]
[SourceTitle "playchess.com"]
[Source "ChessBase"]
[SourceQuality "1"]
[TimeControl "900+10"]

1. d4 {[%emt 0:00:00]} d5 {[%emt 0:00:01]} 2. c4 {[%emt 0:00:00]} c6 {[%emt 0:00:00]} 3. Nf3 {[%emt 0:00:00]} Nf6 {[%emt 0:00:02]} 4. Nc3 {[%emt 0:00:00]} e6 {[%emt 0:00:02]} 5. e3 {[%emt 0:00:00]} Nbd7 {[%emt 0:00:02]} 6. Qc2 {[%emt 0:00:00]} Be7 {[%emt 0:00:12]} 7. Bd3 {[%emt 0:00:00]} O-O {[%emt 0:00:07]} 8. O-O {[%emt 0:00:02]} dxc4 {[%emt 0:00:09]} 9. Bxc4 {[%emt 0:00:00]} b5 {[%emt 0:00:04]} 10. Be2 {[%emt 0:00:02]} a6 {[%emt 0:00:04]} 11. e4 {[%emt 0:00:17]} Bb7 {[%emt 0:00:27]} 12. e5 {[%emt 0:00:04]} Nd5 {[%emt 0:00:05]} 13. Nxd5 {[%emt 0:00:10]} cxd5 {[%emt 0:00:02]} 14. Bf4 {[%emt 0:00:12]} Rc8 {[%emt 0:00:10]} 15. Qd3 {[%emt 0:00:48]} Qb6 {[%emt 0:01:08]} 16. Bg5 {[%emt 0:00:12]} Bxg5 {[%emt 0:01:17]} 17. Nxg5 {[%emt 0:00:00]} g6 {[%emt 0:00:02]} 18. Rfc1 {[%emt 0:00:43]} h6 {[%emt 0:01:17]} 19. Nf3 {[%emt 0:00:03]} Rc7 {[%emt 0:00:05]} 20. Rxc7 {[%emt 0:00:13]} Qxc7 {[%emt 0:00:04]} 21. Qd2 {[%emt 0:00:03]} Rc8 {[%emt 0:00:02]} 22. Qxh6 {[%emt 0:00:09]} Nf8 {[%emt 0:00:48]} 23. Bd3 {[%emt 0:00:11]} Qe7 {[%emt 0:03:56]} 24. h4 {[%emt 0:00:15]} Nh7 {[%emt 0:01:27]} 25. h5 {[%emt 0:00:18]} Qf8 {[%emt 0:00:03]} 26. Qf4 {[%emt 0:01:07]} gxh5 {[%emt 0:02:24]} 27. Ng5 {[%emt 0:00:06]} Nxg5 {[%emt 0:00:59]} 28. Qxg5+ {[%emt 0:00:00]} Qg7 {[%emt 0:00:02]} 29. Qxh5 {[%emt 0:00:02]} Kf8 {[%emt 0:00:44]} 30. Re1 {[%emt 0:02:36]} Ke7 {[%emt 0:00:36]} 31. Qh4+ {[%emt 0:00:12]} Kd7 {[%emt 0:00:10]} 32. Qf4 {[%emt 0:00:07]} Rh8 {[%emt 0:01:06]} 33. Re3 {[%emt 0:00:30]} Bc6 {[%emt 0:00:35]} 34. a3 {[%emt 0:01:21]} Ke7 {[%emt 0:00:54]} 35. Rg3 {[%emt 0:00:55]} Qh6 {[%emt 0:00:28]} 36. Qxh6 {[%emt 0:00:05]} Rxh6 {[%emt 0:00:01]} 37. Rh3 {[%emt 0:00:19]} Rxh3 {[%emt 0:00:15]} 38. gxh3 {[%emt 0:00:01]} Be8 {[%emt 0:00:07]} 39. f4 {[%emt 0:00:06]} f6 {[%emt 0:00:04]} 40. Kf2 {[%emt 0:00:05]} Bh5 {[%emt 0:00:20]} 41. Ke3 {[%emt 0:00:05]} f5 {[%emt 0:00:25]} 42. Kd2 {[%emt 0:00:06]} Kd7 {[%emt 0:00:03]} 43. a4 {[%emt 0:00:21]} Kc6 {[%emt 0:00:31]} 44. Kc3 {[%emt 0:00:04]} Kb6 {[%emt 0:00:16]} 45. axb5 {[%emt 0:00:03]} axb5 {[%emt 0:00:02]} 46. Kb4 {[%emt 0:00:01]} Be8 {[%emt 0:00:16]} 47. Be2 {[%emt 0:00:03]} Bd7 {[%emt 0:00:06]} 48. h4 {[%emt 0:00:02]} Be8 {[%emt 0:00:06]} 49. h5 {[%emt 0:00:01]} Bf7 {[%emt 0:00:30]} 50. h6 {[%emt 0:00:02]} Bg6 {[%emt 0:00:01]} 51. Bxb5 {[%emt 0:00:02]} Bh7 {[%emt 0:00:04]} 52. Be8 {[%emt 0:00:03]} Kc7 {[%emt 0:00:14]} 53. Kc5 {[%emt 0:00:02]} Kd8 {[%emt 0:00:17]} 54. Bh5 {[%emt 0:00:01]} Kc7 {[%emt 0:00:34]} 55. Bf7 {[%emt 0:00:03]} Kd7 {[%emt 0:00:03]} 56. b4 {[%emt 0:00:02]} Ke7 {[%emt 0:00:10]} 57. Bh5 {[%emt 0:00:02]} Kd7 {[%emt 0:00:02]} 58. b5 {[%emt 0:00:01]} Kc7 {[%emt 0:00:28]} 59. b6+ {[%emt 0:00:03]} Kb7 {[%emt 0:00:03]} 60. Bf7 {[%emt 0:00:01]} Kb8 {[%emt 0:00:04]} 61. Bxe6 {[%emt 0:00:03]} Kb7 {[%emt 0:00:03]} 62. Bxd5+ {[%emt 0:00:01]} Kb8 {[%emt 0:00:02]} 63. Bf7 {[%emt 0:00:02]} Kb7 {[%emt 0:00:02]} 64. d5 {[%emt 0:00:01]} Kb8 {[%emt 0:00:02]} 65. Kc6 {[%emt 0:00:02]} Kc8 {[%emt 0:00:02]} 66. d6 {[%emt 0:00:02]} Kd8 {[%emt 0:00:06]} 67. e6 {[%emt 0:00:02]} Kc8 {[%emt 0:00:15]} 68. e7 {[%emt 0:00:01]} Bg6 {[%emt 0:00:02]} 69. e8=Q# {[%emt 0:00:03]} 1-0

[Event "Dvorkovich Memorial Rapid 2018"]
[Site "Taganrog"]
[Date "2018.01.14"]
[Round "2.24"]
[White "Mirzoyan, Mikhail"]
[Black "Vastrukhin, Oleg"]
[Result "0-1"]
[ECO "C18"]
[WhiteElo "2275"]
[BlackElo "2398"]
[Annotator "ChessBase"]
[PlyCount "51"]
[EventDate "2018.??.??"]
[EventType "swiss"]
[EventCountry "RUS"]
[SourceTitle "playchess.com"]
[Source "ChessBase"]
[SourceQuality "1"]
[TimeControl "900+10"]

1. e4 {[%emt 0:00:00]} e6 {[%emt 0:00:00]} 2. d4 {[%emt 0:00:00]} d5 {[%emt 0:00:02]} 3. Nc3 {[%emt 0:00:00]} Bb4 {[%emt 0:00:00]} 4. e5 {[%emt 0:00:00]} c5 {[%emt 0:00:00]} 5. a3 {[%emt 0:00:00]} Bxc3+ {[%emt 0:00:00]} 6. bxc3 {[%emt 0:00:00]} Nc6 {[%emt 0:00:00]} 7. Qg4 {[%emt 0:01:07]} g6 {[%emt 0:00:08]} 8. Nf3 {[%emt 0:00:27]} Qa5 {[%emt 0:00:10]} 9. Bd2 {[%emt 0:00:14]} Qa4 {[%emt 0:00:05]} 10. Be2 {[%emt 0:00:52]} c4 {[%emt 0:00:56]} 11. Ng5 {[%emt 0:02:56]} h6 {[%emt 0:00:10]} 12. Nh3 {[%emt 0:01:14]} Bd7 {[%emt 0:00:42]} 13. Nf4 {[%emt 0:00:17]} O-O-O {[%emt 0:00:21]} 14. O-O {[%emt 0:00:53]} Qxc2 {[%emt 0:01:26]} 15. Rfd1 {[%emt 0:00:00]} Na5 {[%emt 0:00:52]} 16. Be1 {[%emt 0:02:52]} Nb3 {[%emt 0:00:47]} 17. Rab1 {[%emt 0:00:00]} Qa2 {[%emt 0:00:03]} 18. h4 {[%emt 0:01:15]} Qxa3 {[%emt 0:00:04]} 19. h5 {[%emt 0:00:05]} g5 {[%emt 0:00:02]} 20. Nh3 {[%emt 0:00:11]} f5 {[%emt 0:00:01]} 21. exf6 {[%emt 0:00:13]} Nxf6 {[%emt 0:00:02]} 22. Qf3 {[%emt 0:00:14]} Rhf8 {[%emt 0:00:21]} 23. Qe3 {[%emt 0:00:00]} Qd6 {[%emt 0:01:54]} 24. f3 {[%emt 0:01:00]} Nxh5 {[%emt 0:00:14]} 25. g4 {[%emt 0:00:14]} Nf4 {[%emt 0:00:02]} 26. Ra1 {[%emt 0:00:12]} 0-1

[Event "Dvorkovich Memorial Rapid 2018"]
[Site "Taganrog"]
[Date "2018.01.14"]
[Round "2.27"]
[White "Cherepanova, Evita"]
[Black "Tunik, Gennady"]
[Result "0-1"]
[ECO "A47"]
[WhiteElo "1753"]
[BlackElo "2378"]
[Annotator "ChessBase"]
[PlyCount "52"]
[EventDate "2018.??.??"]
[EventType "swiss"]
[EventCountry "RUS"]
[SourceTitle "playchess.com"]
[Source "ChessBase"]
[SourceQuality "1"]
[TimeControl "900+10"]

1. d4 {[%emt 0:00:00]} Nf6 {[%emt 0:00:02]} 2. Nf3 {[%emt 0:00:00]} e6 {[%emt 0:00:03]} 3. Bf4 {[%emt 0:00:00]} b6 {[%emt 0:00:00]} 4. e3 {[%emt 0:00:12]} Bb7 {[%emt 0:00:03]} 5. h3 {[%emt 0:00:05]} c5 {[%emt 0:00:16]} 6. c3 {[%emt 0:00:08]} Be7 {[%emt 0:00:12]} 7. Nbd2 {[%emt 0:01:12]} O-O {[%emt 0:00:07]} 8. Bd3 {[%emt 0:00:04]} cxd4 {[%emt 0:00:30]} 9. exd4 {[%emt 0:00:29]} d6 {[%emt 0:00:09]} 10. O-O {[%emt 0:02:27]} Nbd7 {[%emt 0:00:20]} 11. Re1 {[%emt 0:00:35]} Re8 {[%emt 0:00:55]} 12. Nc4 {[%emt 0:01:52]} Nf8 {[%emt 0:00:26]} 13. a4 {[%emt 0:02:39]} Ng6 {[%emt 0:00:12]} 14. Bh2 {[%emt 0:00:22]} Nd5 {[%emt 0:00:30]} 15. a5 {[%emt 0:01:33]} b5 {[%emt 0:00:20]} 16. a6 {[%emt 0:01:29]} Bc6 {[%emt 0:01:43]} 17. Na5 {[%emt 0:00:48]} Bd7 {[%emt 0:00:40]} 18. Nb7 {[%emt 0:01:19]} Qb6 {[%emt 0:00:05]} 19. Qb3 {[%emt 0:00:36]} Rac8 {[%emt 0:01:03]} 20. Qa3 {[%emt 0:00:06]} b4 {[%emt 0:00:35]} 21. cxb4 {[%emt 0:00:14]} Nxb4 {[%emt 0:00:06]} 22. d5 {[%emt 0:01:31]} e5 {[%emt 0:00:34]} 23. Rec1 {[%emt 0:00:31]} Bf8 {[%emt 0:00:44]} 24. Bxg6 {[%emt 0:00:10]} hxg6 {[%emt 0:00:10]} 25. Qa5 {[%emt 0:00:17]} Qxa5 {[%emt 0:00:10]} 26. Rxa5 {[%emt 0:00:00]} Rxc1+ {[%emt 0:00:12]} 0-1

[Event "Dvorkovich Memorial Rapid 2018"]
[Site "Taganrog"]
[Date "2018.01.14"]
[Round "3.21"]
[White "Kolmychek, Evelina"]
[Black "Ivlev, Aleksey"]
[Result "0-1"]
[ECO "C95"]
[WhiteElo "2013"]
[BlackElo "2300"]
[Annotator "ChessBase"]
[PlyCount "73"]
[EventDate "2018.??.??"]
[EventType "swiss"]
[EventCountry "RUS"]
[SourceTitle "playchess.com"]
[Source "ChessBase"]
[SourceQuality "1"]
[TimeControl "900+10"]

1. e4 {[%emt 0:15:00]} e5 {[%emt 0:15:10]} 2. Nf3 {[%emt 0:00:10]} Nc6 {[%emt 0:00:10]} 3. Bb5 {[%emt 0:00:00]} a6 {[%emt 0:00:00]} 4. Ba4 {[%emt 0:00:00]} Nf6 {[%emt 0:00:00]} 5. O-O {[%emt 0:00:30]} Be7 {[%emt 0:00:30]} 6. Re1 {[%emt 0:00:10]} b5 {[%emt 0:00:10]} 7. Bb3 {[%emt 0:00:10]} O-O {[%emt 0:00:10]} 8. c3 {[%emt 0:00:10]} d6 {[%emt 0:00:10]} 9. h3 {[%emt 0:00:10]} Nb8 {[%emt 0:00:10]} 10. d4 {[%emt 0:00:10]} Nbd7 {[%emt 0:00:10]} 11. Nbd2 {[%emt 0:00:10]} Bb7 {[%emt 0:00:10]} 12. Bc2 {[%emt 0:00:10]} Re8 {[%emt 0:00:10]} 13. Nf1 {[%emt 0:00:10]} Bf8 {[%emt 0:00:10]} 14. Ng3 {[%emt 0:00:10]} g6 {[%emt 0:00:10]} 15. Nh2 {[%emt 0:00:10]} Bg7 {[%emt 0:00:10]} 16. Ng4 {[%emt 0:00:10]} Nxg4 {[%emt 0:00:10]} 17. hxg4 {[%emt 0:00:10]} exd4 {[%emt 0:00:10]} 18. cxd4 {[%emt 0:00:10]} c5 {[%emt 0:00:10]} 19. d5 {[%emt 0:00:10]} Qh4 {[%emt 0:00:10]} 20. g5 {[%emt 0:00:10]} Bd4 {[%emt 0:00:10]} 21. Be3 {[%emt 0:00:10]} Bxe3 {[%emt 0:00:10]} 22. Rxe3 {[%emt 0:00:10]} Qxg5 {[%emt 0:00:10]} 23. Nf1 {[%emt 0:00:10]} Qf6 {[%emt 0:00:10]} 24. b3 {[%emt 0:00:10]} Ne5 {[%emt 0:00:10]} 25. a4 {[%emt 0:00:10]} b4 {[%emt 0:00:10]} 26. Ra2 {[%emt 0:00:10]} a5 {[%emt 0:00:10]} 27. Bb1 {[%emt 0:00:10]} Ba6 {[%emt 0:00:10]} 28. Rh3 {[%emt 0:00:10]} Rac8 {[%emt 0:00:10]} 29. Ne3 {[%emt 0:00:10]} c4 {[%emt 0:00:10]} 30. bxc4 {[%emt 0:00:10]} Bxc4 {[%emt 0:00:10]} 31. Rd2 {[%emt 0:00:10]} Ba6 {[%emt 0:00:10]} 32. f3 {[%emt 0:00:10]} Rc3 {[%emt 0:00:10]} 33. Kf2 {[%emt 0:00:10]} Rec8 {[%emt 0:00:10]} 34. Bc2 {[%emt 0:00:10]} Qf4 {[%emt 0:00:10]} 35. Nf1 {[%emt 0:00:10]} b3 {[%emt 0:00:10]} 36. Bxb3 {[%emt 0:00:10]} Rc1 {[%emt 0:00:10]} 37. Ke1 {[%emt 0:00:10]} 0-1

[Event "Dvorkovich Memorial Rapid 2018"]
[Site "Taganrog"]
[Date "2018.01.13"]
[Round "3.22"]
[White "Anikonov, Dmitry"]
[Black "Simonyan, Grigori"]
[Result "1/2-1/2"]
[ECO "E04"]
[WhiteElo "2407"]
[BlackElo "2075"]
[Annotator "NA"]
[PlyCount "204"]
[EventDate "2018.??.??"]
[EventType "swiss"]
[EventCountry "RUS"]
[SourceTitle "playchess.com"]
[Source "ChessBase"]
[SourceQuality "1"]
[TimeControl "900+10"]

1. d4 {[%emt 0:00:09]} d5 {[%emt 0:00:00]} 2. c4 {[%emt 0:00:11]} c6 {[%emt 0:00:00]} 3. Nc3 {[%emt 0:00:04]} dxc4 {[%emt 0:00:00]} 4. Nf3 {[%emt 0:00:08]} Nf6 {[%emt 0:00:22]} 5. g3 {[%emt 0:00:00]} b5 {[%emt 0:00:05]} 6. Bg2 {[%emt 0:00:00]} Bb7 {[%emt 0:00:01]} 7. Ne5 {[%emt 0:00:37]} a6 {[%emt 0:00:52]} 8. O-O {[%emt 0:00:40]} e6 {[%emt 0:00:00]} 9. a4 {[%emt 0:01:42]} Nd5 {[%emt 0:01:24]} 10. e4 {[%emt 0:00:50]} Nxc3 {[%emt 0:00:01]} 11. bxc3 {[%emt 0:00:11]} Nd7 {[%emt 0:00:32]} 12. f4 {[%emt 0:00:00]} Bd6 {[%emt 0:00:46]} 13. Rb1 {[%emt 0:01:16]} Qc7 {[%emt 0:01:11]} 14. Qg4 {[%emt 0:01:22]} O-O {[%emt 0:00:52]} 15. Nxd7 {[%emt 0:04:11]} Qxd7 {[%emt 0:00:00]} 16. f5 {[%emt 0:00:00]} exf5 {[%emt 0:00:02]} 17. Rxf5 {[%emt 0:00:37]} Kh8 {[%emt 0:02:54]} 18. Qf3 {[%emt 0:01:35]} Rae8 {[%emt 0:01:54]} 19. Be3 {[%emt 0:00:46]} c5 {[%emt 0:00:22]} 20. d5 {[%emt 0:00:05]} b4 {[%emt 0:00:44]} 21. e5 {[%emt 0:02:08]} Bxe5 {[%emt 0:00:22]} 22. Bxc5 {[%emt 0:00:00]} Bxc3 {[%emt 0:00:05]} 23. Bxf8 {[%emt 0:00:17]} Rxf8 {[%emt 0:00:11]} 24. Rf4 {[%emt 0:00:05]} Qc7 {[%emt 0:00:24]} 25. d6 {[%emt 0:00:32]} Qb6+ {[%emt 0:01:45]} 26. Qf2 {[%emt 0:00:00]} Qxf2+ {[%emt 0:00:06]} 27. Kxf2 {[%emt 0:00:05]} Bxg2 {[%emt 0:00:11]} 28. Kxg2 {[%emt 0:00:00]} Be5 {[%emt 0:00:30]} 29. Rxc4 {[%emt 0:00:00]} Bxd6 {[%emt 0:00:00]} 30. Rc6 {[%emt 0:00:04]} Be7 {[%emt 0:00:00]} 31. Rxa6 {[%emt 0:00:11]} Kg8 {[%emt 0:00:23]} 32. Ra7 {[%emt 0:00:17]} Bc5 {[%emt 0:00:00]} 33. Rc7 {[%emt 0:00:00]} Bd6 {[%emt 0:00:12]} 34. Rc6 {[%emt 0:00:20]} Be7 {[%emt 0:00:01]} 35. a5 {[%emt 0:00:00]} Ra8 {[%emt 0:00:30]} 36. a6 {[%emt 0:00:03]} g6 {[%emt 0:00:52]} 37. Rd1 {[%emt 0:00:26]} Ra7 {[%emt 0:00:37]} 38. Rb6 {[%emt 0:00:20]} Bc5 {[%emt 0:00:27]} 39. Rb5 {[%emt 0:00:21]} Bf8 {[%emt 0:00:22]} 40. Ra1 {[%emt 0:00:08]} Kg7 {[%emt 0:00:18]} 41. Rb7 {[%emt 0:00:00]} Ra8 {[%emt 0:00:01]} 42. Kf3 {[%emt 0:00:51]} Kf6 {[%emt 0:00:32]} 43. a7 {[%emt 0:00:50]} Bc5 {[%emt 0:00:04]} 44. Ke4 {[%emt 0:00:00]} b3 {[%emt 0:00:09]} 45. Ra6+ {[%emt 0:00:15]} Kg7 {[%emt 0:00:14]} 46. Kd5 {[%emt 0:00:16]} Bf2 {[%emt 0:00:09]} 47. g4 {[%emt 0:00:25]} b2 {[%emt 0:00:14]} 48. Rxb2 {[%emt 0:00:18]} Rxa7 {[%emt 0:00:01]} 49. Rxa7 {[%emt 0:00:00]} Bxa7 {[%emt 0:00:01]} 50. Kd6 {[%emt 0:00:23]} Be3 {[%emt 0:00:17]} 51. Ke7 {[%emt 0:00:12]} Bg5+ {[%emt 0:00:12]} 52. Ke8 {[%emt 0:00:02]} f5 {[%emt 0:00:33]} 53. Rb7+ {[%emt 0:00:05]} Kh6 {[%emt 0:00:53]} 54. gxf5 {[%emt 0:00:20]} gxf5 {[%emt 0:00:02]} 55. Kf7 {[%emt 0:00:05]} Bf4 {[%emt 0:00:03]} 56. h3 {[%emt 0:00:08]} Kg5 {[%emt 0:00:04]} 57. Ke6 {[%emt 0:00:09]} h5 {[%emt 0:00:20]} 58. Rb4 {[%emt 0:00:24]} Bg3 {[%emt 0:00:13]} 59. Rb5 {[%emt 0:00:13]} Kh4 {[%emt 0:00:04]} 60. Kxf5 {[%emt 0:00:04]} Kxh3 {[%emt 0:00:03]} 61. Rb2 {[%emt 0:00:04]} Bd6 {[%emt 0:00:22]} 62. Rd2 {[%emt 0:00:06]} Bb8 {[%emt 0:00:10]} 63. Rd3+ {[%emt 0:00:06]} Kg2 {[%emt 0:00:05]} 64. Kg5 {[%emt 0:00:03]} Ba7 {[%emt 0:00:07]} 65. Kxh5 {[%emt 0:00:01]} Bb6 {[%emt 0:00:05]} 66. Rb3 {[%emt 0:00:01]} Ba7 {[%emt 0:00:03]} 67. Kg4 {[%emt 0:00:01]} Kh1 {[%emt 0:00:08]} 68. Rh3+ {[%emt 0:00:01]} Kg2 {[%emt 0:00:03]} 69. Rg3+ {[%emt 0:00:01]} Kh1 {[%emt 0:00:05]} 70. Kf3 {[%emt 0:00:12]} Bg1 {[%emt 0:00:11]} 71. Rh3+ {[%emt 0:00:05]} Bh2 {[%emt 0:00:01]} 72. Rh7 {[%emt 0:00:02]} Kg1 {[%emt 0:00:02]} 73. Rd7 {[%emt 0:00:45]} Kh1 {[%emt 0:00:01]} 74. Rd2 {[%emt 0:00:21]} Bg1 {[%emt 0:00:09]} 75. Rd5 {[%emt 0:00:09]} Bh2 {[%emt 0:00:07]} 76. Kf2 {[%emt 0:00:01]} Bg1+ {[%emt 0:00:06]} 77. Kf1 {[%emt 0:00:03]} Bh2 {[%emt 0:00:07]} 78. Rd1 {[%emt 0:00:07]} Bg1 {[%emt 0:00:09]} 79. Ke2 {[%emt 0:00:07]} Kg2 {[%emt 0:00:02]} 80. Rd7 {[%emt 0:00:04]} Bh2 {[%emt 0:00:06]} 81. Rg7+ {[%emt 0:00:03]} Kh1 {[%emt 0:00:02]} 82. Kf3 {[%emt 0:00:08]} Bg1 {[%emt 0:00:10]} 83. Rh7+ {[%emt 0:00:09]} Bh2 {[%emt 0:00:02]} 84. Kg4 {[%emt 0:00:06]} Kg2 {[%emt 0:00:04]} 85. Rb7 {[%emt 0:00:01]} Bg1 {[%emt 0:00:03]} 86. Kf4 {[%emt 0:00:06]} Bh2+ {[%emt 0:00:04]} 87. Ke4 {[%emt 0:00:02]} Bg1 {[%emt 0:00:13]} 88. Rg7+ {[%emt 0:00:06]} Kh1 {[%emt 0:00:01]} 89. Kf3 {[%emt 0:00:15]} Bh2 {[%emt 0:00:09]} 90. Kf2 {[%emt 0:00:01]} Be5 {[%emt 0:00:09]} 91. Rg1+ {[%emt 0:00:02]} Kh2 {[%emt 0:00:14]} 92. Rg5 {[%emt 0:00:04]} Bd4+ {[%emt 0:00:00]} 93. Kf3 {[%emt 0:00:12]} Bb6 {[%emt 0:00:26]} 94. Rb5 {[%emt 0:00:19]} Bd4 {[%emt 0:00:33]} 95. Rb4 {[%emt 0:00:02]} Bc5 {[%emt 0:00:18]} 96. Rc4 {[%emt 0:00:31]} Ba7 {[%emt 0:00:08]} 97. Rc1 {[%emt 0:00:11]} Bg1 {[%emt 0:00:06]} 98. Ke2 {[%emt 0:00:21]} Kg2 {[%emt 0:00:04]} 99. Rc6 {[%emt 0:00:01]} Bh2 {[%emt 0:00:04]} 100. Rg6+ {[%emt 0:00:01]} Kh1 {[%emt 0:00:01]} 101. Rh6 {[%emt 0:00:01]} Kg2 {[%emt 0:00:04]} 102. Rxh2+ {[%emt 0:00:02]} Kxh2 {[%emt 0:00:02]} 1/2-1/2

[Event "Dvorkovich Memorial Rapid 2018"]
[Site "Taganrog"]
[Date "2018.01.13"]
[Round "3.23"]
[White "Vdovin, Maxim"]
[Black "Bykov, Egor"]
[Result "0-1"]
[ECO "E15"]
[WhiteElo "2151"]
[BlackElo "2346"]
[Annotator "NA"]
[PlyCount "47"]
[EventDate "2018.??.??"]
[EventType "swiss"]
[EventCountry "RUS"]
[SourceTitle "playchess.com"]
[Source "ChessBase"]
[SourceQuality "1"]
[TimeControl "900+10"]

1. d4 {[%emt 0:00:00]} Nf6 {[%emt 0:00:10]} 2. Nf3 {[%emt 0:00:02]} e6 {[%emt 0:00:04]} 3. c4 {[%emt 0:00:00]} b6 {[%emt 0:00:06]} 4. g3 {[%emt 0:00:01]} Ba6 {[%emt 0:00:02]} 5. b3 {[%emt 0:00:07]} Bb4+ {[%emt 0:00:03]} 6. Bd2 {[%emt 0:00:02]} Be7 {[%emt 0:00:00]} 7. Bg2 {[%emt 0:00:02]} c6 {[%emt 0:00:02]} 8. Nc3 {[%emt 0:00:05]} d5 {[%emt 0:00:09]} 9. cxd5 {[%emt 0:02:11]} cxd5 {[%emt 0:00:10]} 10. O-O {[%emt 0:00:06]} Nc6 {[%emt 0:00:47]} 11. Rc1 {[%emt 0:01:04]} Rc8 {[%emt 0:00:34]} 12. Qc2 {[%emt 0:03:42]} Ba3 {[%emt 0:01:35]} 13. Rce1 {[%emt 0:00:26]} Ne4 {[%emt 0:02:34]} 14. Nxe4 {[%emt 0:04:38]} Nxd4 {[%emt 0:00:04]} 15. Qb1 {[%emt 0:00:58]} Nxf3+ {[%emt 0:00:45]} 16. Bxf3 {[%emt 0:00:25]} dxe4 {[%emt 0:00:07]} 17. Qxe4 {[%emt 0:00:04]} O-O {[%emt 0:04:26]} 18. Rd1 {[%emt 0:00:13]} Qe8 {[%emt 0:01:15]} 19. Bf4 {[%emt 0:02:02]} Qb5 {[%emt 0:01:00]} 20. Bd6 {[%emt 0:01:03]} Bxd6 {[%emt 0:00:07]} 21. Rxd6 {[%emt 0:00:00]} Qa5 {[%emt 0:00:43]} 22. Rd7 {[%emt 0:00:41]} Bb5 {[%emt 0:00:04]} 23. Re7 {[%emt 0:00:27]} Bc6 {[%emt 0:00:32]} 24. Qf4 {[%emt 0:00:21]} 0-1